Cogmind - Beta 16 @@@ ROGUE MODE // 2026.01.10 @ 23:51:07 Player: Artackni Result: Destroyed by I7-NWX(j) with Overtuned Pulse Rifle Performance ------------- Evolutions (0) 0 Regions Visited (3) 600 Robots Destroyed (29) 145 Value Destroyed (648) 648 Prototype IDs (1) 20 Alien Tech Used (0) 0 Bonus (300) 300 TOTAL SCORE: 1713 Bonus ------- Registered with UFD 300 Cogmind --------- Core Integrity 0/250 Matter 300/300 Energy 100/100 System Corruption 2% Temperature Cool (82) Movement Core (100) Ox1 Location -9/Scraptown Parts ------- > --- POWER (1) -------- (None) > --- PROPULSION (2) --- (None) > --- UTILITY (2) ------ (None) > --- WEAPON (2) ------- Companion Sword > --- INVENTORY (5) ---- Heat Sink Seismic Detector A0-MCA's Component Scanner Proton Cannon Heavy Ion Cannon Peak State ------------ > --- POWER ------------ Light Deuterium Engine > --- PROPULSION ------- Wheel Subdweller Monowheel > --- UTILITY ---------- Scrap Suit > --- WEAPON ----------- Heavy Flak Cannon Companion Sword > --- INVENTORY -------- Heat Sink Seismic Detector A0-MCA's Component Scanner Proton Cannon Heavy Pick [Rating: 27] Favorites ----------- Power Subdweller Power Source Engine Subdweller Power Source Propulsion Wheel Treads Light Treads Wheel Wheel Utility Heat Sink Device Heat Sink Storage Small Storage Unit Weapon Beam Cannon Energy Gun Medium Laser Energy Cannon Beam Cannon Ballistic Gun Subdweller Machine Gun Ballistic Cannon Heavy Flak Cannon Slashing Weapon Companion Sword Build | -11 -10 -10 -9 ------- Run | Yrd Mat Sub Scr Slots Evolved . | . . . . Power . | . . . . Propulsion . | . . . . Utility . | . . . . Weapon . | . . . . Parts Attached 29 | 7 11 6 5 Power 6 | 1 2 2 1 Engine 6 | 1 2 2 1 Core . | . . . . Reactor . | . . . . Propulsion 6 | 2 2 2 . Treads 2 | 1 . 1 . Leg . | . . . . Wheel 4 | 1 2 1 . Hover . | . . . . Flight . | . . . . Utility 6 | 2 3 . 1 Device 5 | 1 3 . 1 Storage 1 | 1 . . . Processor . | . . . . Hackware . | . . . . Protection . | . . . . Artifact . | . . . . Weapon 11 | 2 4 2 3 Energy Gun 2 | 2 . . . Energy Cannon 5 | . 4 . 1 Ballistic Gun 2 | . . 2 . Ballistic Cannon 1 | . . . 1 Launcher . | . . . . Special Weapon . | . . . . Impact Weapon . | . . . . Slashing Weapon 1 | . . . 1 Piercing Weapon . | . . . . Special Melee Weapon . | . . . . Unidentified Prototypes 1 | . . . 1 Parts Lost 12 | . 2 5 5 Power 4 | . 1 2 1 Propulsion 4 | . 1 1 2 Utility 1 | . . . 1 Weapon 3 | . . 2 1 Highest Loss Streak 5 | . 1 5 5 To Critical Strikes . | . . . . Average Backups 5 | 5 6 4 4 Power . | . . . . Propulsion 1 | 3 2 . . Utility 1 | . 1 2 2 Weapon 1 | . 1 1 1 Tool/Special . | . . . . Unused Backups 10 | . 4 1 5 Power 2 | . . 1 1 Propulsion 2 | . 2 . . Utility 2 | . 1 . 1 Weapon 4 | . 1 . 3 Tool/Special . | . . . . Average Slot Usage (%) 95 | . 99 96 93 Engine 13 | . 14 13 13 Treads 6 | . 14 11 . Wheel 19 | . 13 14 24 Device 24 | . 17 28 25 Storage 2 | . 10 . . Energy Gun 1 | . 7 . . Energy Cannon 12 | . 20 22 4 Ballistic Gun 10 | . . 4 17 Ballistic Cannon 2 | . . . 4 Peak Build Rating 27 | 7 8 10 27 Average Rating 10 | 5 7 7 14 On Entrance 6 | . 7 7 10 Avg Prop Armor Cover (%) 8 | 16 12 9 5 Naked Turns . | . . . . Heaviest Build 25 | 12 15 15 25 Greatest Support 30 | 10 20 20 30 Greatest Overweight (x) 4 | 1 1 4 4 Average Overweight (x) 1 | . . 1 1 Largest Inventory Capacity 8 | 8 8 5 5 Average Capacity 5 | 7 7 5 5 Most Carried 8 | 7 8 5 5 Average Carried 5 | 5 6 4 4 Final Capacity 8 | 8 5 5 5 Final Carried 6 | 6 5 5 5 Scrap Suit Usage (%) 7 | . . . 15 Class Distribution -------------------- 49% | Mutant 42% | Scavenger-Mutant 7% | Scrapper Dominant Class ---------------- Mutant | -10/Materials Mutant | -10/Subcaves Scavenger-Mutant | -9/Scraptown Resources | -11 -10 -10 -9 ----------- Run | Yrd Mat Sub Scr Matter Collected 493 | 264 135 54 40 Remotely . | . . . . Salvage Created 943 | 273 461 209 . Parts 63 | 21 29 13 . Haulers Intercepted . | . . . . Recyclers Shooed 1 | 1 . . . Parts Field Recycled . | . . . . Retrieved Matter . | . . . . Parts Self-Destructed 1 | . . 1 . Prevented . | . . . . Parts Restored . | . . . . Kills | -11 -10 -10 -9 ------- Run | Yrd Mat Sub Scr Combat Hostiles Destroyed 18 | . 13 5 . Guns 1 | . . 1 . Cannons 16 | . 13 3 . Classes Destroyed 6 | 3 2 1 . Worker 3 | 2 1 . . Tunneler 7 | 7 . . . Recycler 1 | 1 . . . Swarmer 3 | . 3 . . Grunt 10 | . 10 . . Subdweller 5 | . . 5 . Best Kill Streak 5 | 4 5 2 . Combat Bots Only 5 | . 5 2 . Max Kills in Single Turn 1 | 1 1 1 . Gunslinging . | . . . . Exploded . | . . . . Melee . | . . . . Uniques/NPCs Destroyed . | . . . . Combat | -11 -10 -10 -9 -------- Run | Yrd Mat Sub Scr Hostile Shots Fired 150 | . 47 39 64 Missed 44 | . 14 11 19 Hits 106 | . 33 28 45 Projectile 106 | . 33 28 45 Critical Strikes 5 | . . 1 4 Damage Taken 1774 | . 353 641 780 Core 271 | . 28 105 138 Absorbed by Shields . | . . . . Core Remaining (%) 100 | 100 . . . Volleys Fired 93 | 29 36 28 . Largest 2 | 2 2 2 . Hottest 120 | 90 120 120 . Shots Fired 176 | 56 72 48 . Gun 69 | 56 6 7 . Cannon 107 | . 66 41 . Launcher . | . . . . Special . | . . . . Kinetic 7 | . . 7 . Thermal 169 | 56 72 41 . Explosive . | . . . . Electromagnetic . | . . . . Robot Hit Streak 16 | 7 11 16 . Robot Miss Streak 3 | 3 3 1 . Penetration Max . | . . . . Secondary Targets . | . . . . Shots Hit Robots 118 | 32 45 41 . Core Hits 32 | 10 15 7 . Critical Kills 1 | . . 1 . Critical Parts Destroyed . | . . . . Critical Strikes 2 | 1 . 1 . Burn 1 | 1 . . . Meltdown 1 | . . 1 . Melee Attacks 1 | . . . 1 Impact . | . . . . Slashing 1 | . . . 1 Piercing . | . . . . Sneak Attacks . | . . . . Combat Hostiles . | . . . . Follow-up Attacks . | . . . . Damage Inflicted 1925 | 383 793 749 . Guns 573 | 383 36 154 . Cannons 1352 | . 757 595 . Explosions . | . . . . Melee . | . . . . Ramming . | . . . . Kinetic 154 | . . 154 . Thermal 1771 | 383 793 595 . Explosive . | . . . . Electromagnetic . | . . . . Impact . | . . . . Slashing . | . . . . Piercing . | . . . . Highest Corruption 2 | . . . 2 Average Corruption 1 | . . . 1 Corruption Purged . | . . . . Corruption Blocked . | . . . . Overload Shots . | . . . . Overflow Damage . | . . . . Projectiles . | . . . . Explosions . | . . . . Melee . | . . . . Knockbacks . | . . . . Impact . | . . . . Kinetic . | . . . . Secondary . | . . . . Self-Inflicted Damage . | . . . . Shots . | . . . . Rammed . | . . . . Targets Rammed . | . . . . Kicked . | . . . . Crushed . | . . . . Highest Temperature 330 | 330 180 . 58 Average Temperature 81 | 106 60 . 24 Received Heat Transfer 549 | . 150 42 357 Effects 1 | 1 . . . Matter Decay 1 | 1 . . . Siege Activations . | . . . . Martial Activations . | . . . . Shielding Activations . | . . . . Robots Disrupted . | . . . . Combat Hostiles . | . . . . Robots Corrupted . | . . . . Combat Hostiles . | . . . . Parts Fried . | . . . . Impact Corruptions . | . . . . Robots Melted 2 | 1 . 1 . Combat Hostiles 1 | . . 1 . Parts Melted 8 | 2 4 2 . Heat Transferred 4062 | 1114 1690 1258 . Parts Sabotaged . | . . . . Parts Stolen . | . . . . Parts Stripped . | . . . . Power Chain Reactions . | . . . . Alert | -11 -10 -10 -9 ------- Run | Yrd Mat Sub Scr Maximum Alert Level 1 | . 1 . . Low Security (%) 91 | 100 88 . . Level 1 8 | . 11 . . Level 2 . | . . . . Level 3 . | . . . . Level 4 . | . . . . Level 5 . | . . . . High Security . | . . . . Max Security . | . . . . Peak Influence 230 | 10 230 . . Initial . | . . . . Average 46 | 1 65 . . Influence Increases 412 | 50 362 . . Destroy 0b10 Robot/C 260 | . 260 . . Destroy 0b10 Robot/NC 55 | 50 5 . . Destroy Leader 50 | . 50 . . Disable Machine 30 | . 30 . . Destroy Structure 2 | . 2 . . Lose Combat Pursuer 15 | . 15 . . Influence Decreases 412 | 50 148 214 . Entered New Map 103 | . . 103 . Time Decay 299 | 50 138 111 . Lost Part 10 | . 10 . . Squads Dispatched 4 | . 4 . . Investigation 3 | . 3 . . Extermination . | . . . . Reinforcement 1 | . 1 . . Assault . | . . . . Garrison . | . . . . Intercept . | . . . . Searches Triggered . | . . . . Construction Impeded . | . . . . Haulers Reinforced . | . . . . Active Scanning Responses . | . . . . Cargo Convoy Interrupts . | . . . . Stealth | -11 -10 -10 -9 --------- Run | Yrd Mat Sub Scr Distress Signals 3 | . 3 . . Communications Jammed . | . . . . Distress Signals . | . . . . Times Spotted 39 | . 21 5 13 Peak Tracking Total 20 | . 7 2 20 Tactical Retreats 2 | . 1 . 1 Traps | -11 -10 -10 -9 ------- Run | Yrd Mat Sub Scr Traps Triggered 3 | . 2 1 . Indirectly . | . . . . Trap Hack Attempts . | . . . . Triggered . | . . . . Disarmed . | . . . . Reprogrammed . | . . . . Reused . | . . . . Traps Extracted . | . . . . Installed . | . . . . Triggered . | . . . . Machines | -11 -10 -10 -9 ---------- Run | Yrd Mat Sub Scr Machines Disabled 3 | . 2 . 1 Max in Single Turn 1 | . 1 . 1 Machines Repaired . | . . . . Machines Dismantled . | . . . . Machines Sabotaged . | . . . . Overloaded Fab Kills . | . . . . Hacking | -11 -10 -10 -9 --------- Run | Yrd Mat Sub Scr Machines Accessed 6 | . 4 . 2 Terminals 4 | . 4 . . Fabricators . | . . . . Repair Stations . | . . . . Recycling Units . | . . . . Scanalyzers . | . . . . Garrison Access . | . . . . Total Hacks 10 | . 7 . 3 Successful 6 | . 3 . 3 Failed 4 | . 4 . . Catastrophic 1 | . 1 . . Database Lockouts . | . . . . Manual 4 | . 4 . . Terminals 7 | . 7 . . Fabricators . | . . . . Repair Stations . | . . . . Recycling Units . | . . . . Scanalyzers . | . . . . Garrison Access . | . . . . Terminal Hacks 6 | . 3 . 3 Record 2 | . . . 2 Open Door 1 | . . . 1 Transport Status 1 | . 1 . . Zone Layout 2 | . 2 . . Fabricator Hacks . | . . . . Repair Station Hacks . | . . . . Recycling Unit Hacks . | . . . . Scanalyzer . | . . . . Garrison Access Hacks . | . . . . Unauthorized Hacks . | . . . . Terminals . | . . . . Fabricators . | . . . . Repair Stations . | . . . . Recycling Units . | . . . . Scanalyzers . | . . . . Garrison Access . | . . . . Data Cores Recovered 1 | . 1 . . Used . | . . . . Hacking Detections 4 | . 4 . . Full Trace Events 1 | . 1 . . Feedback Events . | . . . . Feedback Blocked . | . . . . Robot Schematics Acquired . | . . . . Robots Built . | . . . . Authchips . | . . . . Time . | . . . . Total Robot Build Rating . | . . . . Part Schematics Acquired . | . . . . Parts Built . | . . . . Authchips . | . . . . Time . | . . . . Total Part Build Rating . | . . . . Part Studies Acquired . | . . . . Parts Repaired . | . . . . Time . | . . . . Parts Recycled . | . . . . Recycled Matter . | . . . . Retrieved Matter . | . . . . Retrieved Components . | . . . . Parts Scanalyzed . | . . . . Part Schematics Acquired . | . . . . Parts Damaged . | . . . . Bothacking | -11 -10 -10 -9 ------------ Run | Yrd Mat Sub Scr Used RIF Installer . | . . . . Robots Hacked . | . . . . Non-combat . | . . . . Combat . | . . . . Robot Hacks Applied . | . . . . Relay Couplers Released . | . . . . Fabnet Peak Effective % . | . . . . Robots Rewired . | . . . . Allies Hacked . | . . . . Hacks Repelled . | . . . . Allies | -11 -10 -10 -9 -------- Run | Yrd Mat Sub Scr Total Allies . | . . . . Largest Group . | . . . . Highest-Rated Group . | . . . . Highest-Rated Ally . | . . . . Total Orders . | . . . . Ally Attacks . | . . . . Total Damage . | . . . . Kills . | . . . . Allies Corrupted . | . . . . Allies Melted . | . . . . Intel | -11 -10 -10 -9 ------- Run | Yrd Mat Sub Scr Active Infowar (turns) 208 | 4 204 . . Seismic 208 | 4 204 . . Robot Analysis Total . | . . . . Derelict Logs Recovered 5 | . . 2 3 Drone Launches . | . . . . Drone Recoveries . | . . . . Exploration | -11 -10 -10 -9 ------------- Run | Yrd Mat Sub Scr Turns Passed 2572 | 223 512 617 1220 Spaces Moved 1921 | 83 360 403 1075 Core 154 | 1 . 43 110 Treads 96 | . 9 87 . Legs . | . . . . Wheels 1671 | 82 351 273 965 Hover . | . . . . Flight . | . . . . Fastest Speed 50 | 50 95 95 95 Average Speed 110 | 87 96 124 111 Slowest Speed 250 | 95 160 250 250 Overloaded Moves . | . . . . Propulsion Burnouts . | . . . . Robots Hopped . | . . . . Potential Cave-ins . | . . . . Cave-ins Triggered . | . . . . Exploration Rate (%) 45 | 6 60 33 83 Regions Visited 3 Branch Regions 2 Pre-discovered Areas 3 | . . 2 1 Known Exits Taken . | . . . . Unknown Exits Taken 3 | 1 1 1 . Scrap Searched 3 | . . . 3 Spaces Dug . | . . . . Terrain Destroyed . | . . . . Melee . | . . . . Projectile . | . . . . AOE . | . . . . Terrain Rammed . | . . . . Walls Destroyed . | . . . . Machines Disabled . | . . . . Actions | -11 -10 -10 -9 --------- Run | Yrd Mat Sub Scr Total 2193 | 173 454 472 1094 Wait 106 | 47 30 29 . Move 1918 | 82 359 402 1075 Hop . | . . . . Pick Up 20 | 7 6 3 4 Fast Attach 15 | 7 3 3 2 Attach 3 | . 1 1 1 Detach 3 | . 1 . 2 Swap 12 | . 7 2 3 Drop 22 | 1 11 4 6 Fire 93 | 29 36 28 . Melee 1 | . . . 1 Ram . | . . . . Kick . | . . . . Crush . | . . . . Escape Stasis . | . . . . Rewire . | . . . . Trap . | . . . . Miscellaneous . | . . . . Route ------- -11/Scrapyard -10/Materials (discovered 4 exits: [*Mat] / [*Min x2] / [*Sub]) -10/Subcaves (discovered 2 exits: *Scr x2) -9/Scraptown (discovered 1 exit: [*Fac]) History --------- Turn | Location | Event 22 | -11/Scrapyard | Discovered new exit (range 16) 224 | -11/Scrapyard | Entered Materials 225 | -10/Materials | Met a group of wandering Federalists 277 | -10/Materials | Discovered new exit (range 16) 317 | -10/Materials | Build established: Mutant 344 | -10/Materials | Discovered new exit (range 16) 394 | -10/Materials | Discovered new exit (range 15) 505 | -10/Materials | Discovered new exit (range 12) 736 | -10/Materials | Entered Subcaves 737 | -10/Subcaves | Continued accompanying wandering Federalists (5) 737 | -10/Subcaves | Approached by a straggling Scientist 809 | -10/Subcaves | Lost 4 allies 1219 | -10/Subcaves | Core integrity fell below 50% 1277 | -10/Subcaves | Lost 5 parts (2p1n2w) 1301 | -10/Subcaves | Learned location of Zion (-6) 1353 | -10/Subcaves | Entered Scraptown 1530 | -9/Scraptown | Build established: Scavenger-Mutant 1624 | -9/Scraptown | Visited Comm Corps 1654 | -9/Scraptown | Visited Cave Peace 1688 | -9/Scraptown | Visited TADAMA 1703 | -9/Scraptown | Visited Awakened 1738 | -9/Scraptown | Visited Red Mages 1780 | -9/Scraptown | Scanned Subdweller tech in exchange for log data 1783 | -9/Scraptown | Learned 8 Factory zone layouts 1784 | -9/Scraptown | Learned location of Extension (-5) 1784 | -9/Scraptown | Heard Great Nut preacher, LISTEN AND RECITE! 1916 | -9/Scraptown | Discovered new exit (range 6) 1946 | -9/Scraptown | Visited Fellowship of the Rings 1969 | -9/Scraptown | Visited Cyclists 2220 | -9/Scraptown | Visited UFD Registry 2220 | -9/Scraptown | Registered with UFD as "Deathface" 2252 | -9/Scraptown | Visited Cartography Club 2282 | -9/Scraptown | Visited A0-MCA Data Center 2288 | -9/Scraptown | Given an A rating by A0-MCA 2293 | -9/Scraptown | Found A0-MCA's Component Scanner 2314 | -9/Scraptown | Visited DA-N13 Charitable Foundation 2323 | -9/Scraptown | Found DCF Scrap (29 items) 2341 | -9/Scraptown | Visited Junk Repository 2375 | -9/Scraptown | Visited Scrap Suit Storage 2380 | -9/Scraptown | Found Scrap Suit 2402 | -9/Scraptown | Visited Sword Containment 2411 | -9/Scraptown | Found Prototype Slashing Weapon 2411 | -9/Scraptown | Identified Companion Sword 2552 | -9/Scraptown | Visited Curators Association 2554 | -9/Scraptown | Attacked by Scraptown defenders 2572 | -9/Scraptown | Core integrity fell below 20% 2573 | -9/Scraptown | Destroyed by I7-NWX(j) with Overtuned Pulse Rifle Last Messages --------------- 02480_ Multiple signs read "I'm always busy, go away." Companion Sword: "So where to next?" CK-NOD(g): REBOOT5.EXE seems like great insurance against being sucked down a chute. The UFD needs more work in this area. 02552_ LOCAL NARROWCAST: Curators Association. Welcome to the latest exhibit, look but don't touch. 02554_ Machine disabled. 02554_ ANNOUNCEMENT: Intruder alert! Defend Scraptown! 02556_ Autobeam Turret pops up from the ground. 02557_ Critical hit (Burn: +50). 02559_ Machine disabled. 02564_ 5T-HUO(j): "Why does 0b10 have so many dangerous, evil bots?!" 02565_ Lgt. Deuterium Engine destroyed. 02565_ Wheel destroyed. 02566_ Hvy. Flak Cannon destroyed. 02569_ Sub. Monowheel destroyed. 02571_ Critical hit (Burn: +50). 02573_ Machine disabled. 02573_ Bolt penetrates 5T-HUO(j). 02573_ Scrap Suit destroyed. Map ----- +----------------------------------------------------+ | #"""""""""#????????????? ???????????????????????? | | #"""""""""#????????????# #??????????????????????? | | #"""""""""#?##########?# #??????????????????????? | | #""" """#?# ##*=*#?# #? ????????????????????? | | #""" """#?# ##[==#?# #? "???????????????????? | | #""" "!"#?# $=*!!%*#?# #" """?????????????????? | | #""""] """#?# *![[[!#?# #" ?????????????????? | | #""" """#?# !/]!*#?# #"" ??????????????????? | | #" #?# ===*#?# # ???????????????????? | | ###### ####?######=###?# ## #???????????????????? | | ###### ###########!##### ## #########???????????? | | """""" """"""""""" """"" "" "## #???????????? | | c "## #???????????? | | "## ####???????????? | | "## [#???????????? | | "## !!#???????????? | | p #???????????? | | """"""""""""""""""""""""h "##! ####???????????? | | """""""""""""""""""""""" "##* /]#???????????? | | #### ################"" "## !!/#???????????? | | ??? ??????????????#""j "#############??????? | | ??? ??????????????#"" j "## #"""""#""#??????? | | ???" "??????????????#""gj "## !! !! !#??????? | | ???? ?????????????###"" j "## #??????? | | "???????????####### #"" "## #??????? | | ??????? @ ! X" #??????? | | ??????? r "## ##????????? | | "???????????####### #"" "## !!#?????????? | | ???????????????????###"" "## #"""""#?????????? | | ?????????????????????#" "##########?????????? | | ?????????????????????#" "#??????????????????? | | ?????????????????????#"" "#?????########?????? | | ????????????##########"" c "####### #?????? | | ?????????"""""""""""""""j ## ## #?????? | | ???????""""""""""""" " ## #?????? | | ??????? ## X# / #?????? | | ?????? "## #?????? | | ????? gE"## ## #?????? | | ???? pc ## ## #?????? | | ????? # ## #?????? | | "??????? """""""""" """""" ####### #?????? | | ?????????????####### ###### #?????########?????? | | ?????????????????? ???# #??????????????????? | | ????????????????"" ""?# #??????????????????? | | ???????????????#!" "[## #??????????????????? | | ???????????????#"" ""## #??????????????????? | | ??????????????#" "# #??????????????????? | | ??????????????##"" ""## ############???????? | | ???????????????#!" "!## #???????? | | ???????????????#"" ""## ##???????? | +----------------------------------------------------+ Best States ------------- Heat Dissipation 45 Energy Generation 15 Energy Capacity 250 Matter Stores 300 Matter Capacity 300 Sight Range 16 Terrain Scan Density 10 Evasion (%) 44 Recoil Reduction 1 Item Schematics ----------------- None Robot Schematics ------------------ None Fabricated ------------ Nothing Repaired ---------- Nothing Studied --------- None Alien Tech Used ----------------- None Achievements -------------- None Challenges ------------ None Game ------ Seed SpectralExpertGreatsword Manual? 0 Play Time 00:29:21 Cumulative 64.5 hours Start 2026.01.10 @ 23:23:15 End 2026.01.10 @ 23:51:07 Sessions 1 Manual Loads 0 Difficulty Rogue Special Mode None Game No. 24 Rogue 24 Adventurer 0 Explorer 0 Win Type - Total 1 Types 1/0/0/0/0/0/0/0/0/0 Lore% 35 Gallery% 43 Achievement% 36 Wizard Run 0 Options --------- Layout 0 ASCII 0 Keyboard 1 Movement Arrows Keybinds 0 Fullscreen 1 Font 18/SmallcapsGlow Map View 76x50 Zoom Use 0% Tactical HUD 1 Map Filters NONE Filters NONE Steam 1 RUN: cab38938-b928-408e-a624-86f0f69301a1